fUST/lending_fUST_20250603
["ID","MTS","AMOUNT","RATE_DAILY","PERIOD"]
[363957747,1748946648038,-812.28,0.00018082,2]
[363957749,1748946648047,-1085.16,0.00018082,2]
[363957751,1748946648057,-440.0,0.00018082,2]
[363957753,1748946648067,-440.0,0.00018082,2]
[363957755,1748946648076,-314.26369834,0.00018082,2]
[363957757,1748946648087,-440.0,0.00018082,2]
[363957759,1748946648096,-440.0,0.00018082,2]
[363957761,1748946648106,-440.0,0.00018082,2]
[363957763,1748946648115,-1793.76,0.00018082,2]
[363957764,1748946648124,-969.47,0.00018082,2]
[363957766,1748946648134,-440.0,0.00018082,2]
[363957768,1748946648144,-1694.5720177,0.00018141,2]
[363957770,1748946648154,-879.83,0.00018355,2]
[363957772,1748946648163,-440.0,0.00018356,2]
[363957774,1748946648172,-440.0,0.00018356,2]
[363957776,1748946648182,-440.0,0.00018356,2]
[363957778,1748946648191,-440.0,0.00018356,2]
[363957779,1748946648201,-440.0,0.00018356,2]
[363957782,1748946648211,-440.0,0.00018356,2]
[363957783,1748946648221,-504.52,0.00018356,2]
[363957785,1748946648231,-440.0,0.00018356,2]
[363957787,1748946648241,-440.0,0.00018356,2]
[363957789,1748946648251,-440.0,0.00018356,2]
[363957791,1748946648262,-440.0,0.00018356,2]
[363957793,1748946648272,-440.0,0.00018356,2]
[363957795,1748946648282,-15951.04,0.00018356,2]
[363957796,1748946648292,-440.0,0.00018356,2]
[363957798,1748946648301,-440.0,0.00018356,2]
[363957799,1748946648311,-1331.65,0.00018356,2]
[363957800,1748946648321,-440.0,0.00018356,2]
[363957801,1748946648330,-487.26,0.00018356,2]
[363957802,1748946648340,-1206.48,0.00018356,2]
[363957803,1748946648350,-440.0,0.00018356,2]
[363957804,1748946648360,-512.8,0.00018356,2]
[363957805,1748946648369,-4509.62,0.00018356,2]
[363957806,1748946648379,-440.0,0.00018356,2]
[363957807,1748946648388,-767.81,0.00018356,2]
[363957808,1748946648399,-1889.79,0.00018356,2]
[363957809,1748946648409,-2287.16,0.00018356,2]
[363957811,1748946648418,-1333.43,0.00018356,2]
[363957813,1748946648429,-2420.97,0.00018356,2]
[363957815,1748946648438,-1785.97,0.00018356,2]
[363957817,1748946648449,-490.58,0.00018356,2]
[363957819,1748946648459,-442.15,0.00018356,2]
[363957821,1748946648469,-440.0,0.00018356,2]
[363957823,1748946648479,-440.0,0.00018356,2]
[363957825,1748946648489,-637.93,0.00018356,2]
[363957827,1748946648499,-655.59,0.00018356,2]
[363957829,1748946648509,-738.86,0.00018356,2]
[363957831,1748946648523,-440.0,0.00018356,2]
[363957833,1748946648533,-440.0,0.00018356,2]
[363957835,1748946648542,-440.0,0.00018356,2]
[363957837,1748946648552,-921.6,0.00018356,2]
[363957839,1748946648563,-648.26,0.00018356,2]
[363957841,1748946648572,-812.28,0.00018356,2]
[363957843,1748946648582,-1085.16,0.00018356,2]
[363957845,1748946648594,-440.0,0.00018356,2]
[363957847,1748946648604,-440.0,0.00018356,2]
[363957849,1748946648615,-410.0,0.00018356,2]
[363957852,1748946648625,-440.0,0.00018356,2]
[363957854,1748946648636,-440.0,0.00018356,2]
[363957856,1748946648645,-1793.76,0.00018356,2]
[363957858,1748946648655,-969.47,0.00018356,2]
[363957860,1748946648665,-440.0,0.00018356,2]
[363957862,1748946648675,-1694.5720177,0.00018383,2]
[363957864,1748946648685,-1694.5720177,0.00018624,2]
[363957866,1748946648695,-879.83,0.00018629,2]
[363957868,1748946648704,-440.0,0.0001863,2]
[363957870,1748946648714,-440.0,0.0001863,2]
[363957872,1748946648723,-372.87135352,0.0001863,2]
[363957874,1748946648734,-440.0,0.0001863,2]
[363957876,1748946648742,-430.0,0.0001863,2]
[363957878,1748946648752,-440.0,0.0001863,2]
[363957880,1748946648761,-440.0,0.0001863,2]
[363957882,1748946648771,-440.0,0.0001863,2]
[363957884,1748946648781,-440.0,0.0001863,2]
[363957886,1748946648791,-440.0,0.0001863,2]
[363957888,1748946648800,-440.0,0.0001863,2]
[363957890,1748946648809,-15951.04,0.0001863,2]
[363957892,1748946648819,-440.0,0.0001863,2]
[363957894,1748946648828,-440.0,0.0001863,2]
[363957896,1748946648838,-1331.65,0.0001863,2]
[363957898,1748946648848,-440.0,0.0001863,2]
[363957900,1748946648860,-487.26,0.0001863,2]
[363957902,1748946648869,-1206.48,0.0001863,2]
[363957904,1748946648879,-430.0,0.0001863,2]
[363957906,1748946648889,-512.8,0.0001863,2]
[363957908,1748946648898,-4509.62,0.0001863,2]
[363957910,1748946648909,-440.0,0.0001863,2]
[363957912,1748946648919,-767.81,0.0001863,2]
[363957914,1748946648928,-1889.79,0.0001863,2]
[363957916,1748946648938,-2287.16,0.0001863,2]
[363957918,1748946648948,-1333.43,0.0001863,2]
[363957920,1748946648957,-2420.97,0.0001863,2]
[363957922,1748946648967,-1785.97,0.0001863,2]
[363957924,1748946648977,-490.58,0.0001863,2]
[363957926,1748946648987,-442.15,0.0001863,2]
[363957928,1748946648996,-440.0,0.0001863,2]
[363957930,1748946649005,-440.0,0.0001863,2]
[363957932,1748946649015,-637.93,0.0001863,2]
[363957934,1748946649025,-655.59,0.0001863,2]
[363957936,1748946649034,-738.86,0.0001863,2]
[363957938,1748946649043,-440.0,0.0001863,2]
[363957940,1748946649053,-440.0,0.0001863,2]
[363957942,1748946649063,-440.0,0.0001863,2]
[363957944,1748946649072,-921.6,0.0001863,2]
[363957946,1748946649081,-648.26,0.0001863,2]
[363957948,1748946649091,-812.28,0.0001863,2]
[363957950,1748946649101,-1085.16,0.0001863,2]
[363957952,1748946649111,-440.0,0.0001863,2]
[363957954,1748946649122,-440.0,0.0001863,2]
[363957956,1748946649133,-440.0,0.0001863,2]
[363957958,1748946649144,-440.0,0.0001863,2]
[363957960,1748946649155,-1793.76,0.0001863,2]
[363957962,1748946649165,-969.47,0.0001863,2]
[363957964,1748946649175,-440.0,0.0001863,2]
[363957966,1748946649185,-500.000001,0.0001868,2]
[363957968,1748946649195,-879.83,0.00018865,2]
[363957970,1748946649207,-1694.5720177,0.00018866,2]
[363957972,1748946649217,-879.83,0.00018903,2]
[363957974,1748946649228,-160.0,0.00018903,2]
[363957977,1748946649239,-440.0,0.00018904,2]
[363957979,1748946649249,-440.0,0.00018904,2]
[363957981,1748946649259,-440.0,0.00018904,2]
[363957983,1748946649269,-440.0,0.00018904,2]
[363957985,1748946649279,-440.0,0.00018904,2]
[363957987,1748946649289,-440.0,0.00018904,2]
[363957989,1748946649299,-440.0,0.00018904,2]
[363957991,1748946649309,-440.0,0.00018904,2]
[363957993,1748946649319,-440.0,0.00018904,2]
[363957995,1748946649329,-15951.04,0.00018904,2]
[363957997,1748946649338,-440.0,0.00018904,2]
[363957999,1748946649348,-440.0,0.00018904,2]
[363958001,1748946649358,-1331.65,0.00018904,2]
[363958013,1748946649464,-440.0,0.00018904,2]
[363958015,1748946649475,-487.26,0.00018904,2]
[363958017,1748946649485,-1206.48,0.00018904,2]
[363958019,1748946649495,-512.8,0.00018904,2]
[363958021,1748946649505,-4509.62,0.00018904,2]
[363958023,1748946649519,-440.0,0.00018904,2]
[363958025,1748946649529,-767.81,0.00018904,2]
[363958027,1748946649539,-1889.79,0.00018904,2]
[363958029,1748946649550,-2287.16,0.00018904,2]
[363958031,1748946649559,-1333.43,0.00018904,2]
[363958033,1748946649569,-2420.97,0.00018904,2]
[363958035,1748946649578,-1785.97,0.00018904,2]
[363958037,1748946649588,-490.58,0.00018904,2]
[363958039,1748946649598,-442.15,0.00018904,2]
[363958041,1748946649608,-440.0,0.00018904,2]
[363958043,1748946649618,-440.0,0.00018904,2]
[363958046,1748946649628,-637.93,0.00018904,2]
[363958048,1748946649637,-655.59,0.00018904,2]
[363958050,1748946649646,-738.86,0.00018904,2]
[363958052,1748946649656,-440.0,0.00018904,2]
[363958053,1748946649665,-440.0,0.00018904,2]
[363958056,1748946649675,-440.0,0.00018904,2]
[363958058,1748946649685,-921.6,0.00018904,2]
[363958060,1748946649695,-648.26,0.00018904,2]
[363958061,1748946649705,-812.28,0.00018904,2]
[363958064,1748946649714,-1085.16,0.00018904,2]
[363958066,1748946649724,-440.0,0.00018904,2]
[363958068,1748946649733,-440.0,0.00018904,2]
[363958070,1748946649743,-440.0,0.00018904,2]
[363958072,1748946649752,-440.0,0.00018904,2]
[363958074,1748946649762,-1793.76,0.00018904,2]
[363958076,1748946649771,-969.47,0.00018904,2]
[363958078,1748946649780,-424.32630807,0.00018904,2]
[363958080,1748946649790,-879.83,0.00018983,2]
[363958082,1748946649799,-22312.17223884,0.00018984,2]
[363958084,1748946649808,-1694.5720177,0.00019107,2]
[363958086,1748946649818,-879.83,0.00019177,2]
[363958088,1748946649828,-879.83,0.00019177,2]
[363958090,1748946649838,-879.83,0.00019177,2]
[363958092,1748946649847,-879.83,0.00019177,2]
[363958094,1748946649856,-879.83,0.00019177,2]
[363958096,1748946649865,-500.0,0.00019177,2]
[363958098,1748946649874,-500.0,0.00019177,2]
[363958100,1748946649884,-500.0,0.00019177,2]
[363958102,1748946649893,-500.0,0.00019177,2]
[363958104,1748946649903,-500.0,0.00019177,2]
[363958106,1748946649913,-500.0,0.00019177,2]
[363958108,1748946649922,-500.0,0.00019177,2]
[363958110,1748946649931,-500.0,0.00019177,2]
[363958112,1748946649940,-618.18934341,0.00019177,2]
[363958114,1748946649951,-500.0,0.00019177,2]
[363958116,1748946649960,-500.0,0.00019177,2]
[363958118,1748946649969,-440.0,0.00019178,2]
[363958120,1748946649978,-440.0,0.00019178,2]
[363958122,1748946649987,-440.0,0.00019178,2]
[363958124,1748946649997,-440.0,0.00019178,2]
[363958126,1748946650006,-440.0,0.00019178,2]
[363958128,1748946650016,-440.0,0.00019178,2]
[363958130,1748946650025,-440.0,0.00019178,2]
[363958132,1748946650035,-440.0,0.00019178,2]
[363958134,1748946650046,-440.0,0.00019178,2]
[363958136,1748946650055,-15951.04,0.00019178,2]
[363958138,1748946650064,-440.0,0.00019178,2]
[363958140,1748946650074,-440.0,0.00019178,2]
[363958142,1748946650083,-1331.65,0.00019178,2]
[363958144,1748946650093,-440.0,0.00019178,2]
[363958146,1748946650102,-487.26,0.00019178,2]
[363958148,1748946650111,-1206.48,0.00019178,2]
[363958150,1748946650121,-512.8,0.00019178,2]
[363958152,1748946650129,-4509.62,0.00019178,2]
[363958154,1748946650139,-440.0,0.00019178,2]
[363958156,1748946650148,-767.81,0.00019178,2]
[363958158,1748946650158,-1889.79,0.00019178,2]
[363958160,1748946650168,-2287.16,0.00019178,2]
[363958162,1748946650177,-1333.43,0.00019178,2]
[363958164,1748946650187,-2420.97,0.00019178,2]
[363958166,1748946650198,-1785.97,0.00019178,2]
[363958168,1748946650208,-490.58,0.00019178,2]
[363958170,1748946650219,-442.15,0.00019178,2]
[363958172,1748946650228,-564.33897861,0.00019178,2]
[363958175,1748946650238,-440.0,0.00019178,2]
[363958177,1748946650248,-637.93,0.00019178,2]
[363958178,1748946650258,-655.59,0.00019178,2]
[363958181,1748946650268,-738.86,0.00019178,2]
[363958183,1748946650278,-440.0,0.00019178,2]
[363958184,1748946650287,-440.0,0.00019178,2]
[363958186,1748946650296,-440.0,0.00019178,2]
[363958188,1748946650305,-921.6,0.00019178,2]
[363958191,1748946650316,-648.26,0.00019178,2]
[363958193,1748946650325,-812.28,0.00019178,2]
[363958195,1748946650335,-1085.16,0.00019178,2]
[363958197,1748946650345,-440.0,0.00019178,2]
[363958199,1748946650355,-440.0,0.00019178,2]
[363958201,1748946650364,-440.0,0.00019178,2]
[363958203,1748946650373,-440.0,0.00019178,2]
[363958205,1748946650383,-1793.76,0.00019178,2]
[363958207,1748946650393,-969.47,0.00019178,2]
[363958209,1748946650402,-151.0,0.00019178,2]
[363958211,1748946650412,-230.929851,0.00019178,2]
[363958213,1748946650422,-156.587,0.00019233,2]
[363958215,1748946650432,-162.380719,0.00019288,2]
[363958217,1748946650442,-168.3888056,0.00019343,2]
[363958219,1748946650452,-1694.5720177,0.00019348,2]
[363958221,1748946650462,-32352.81930117,0.00019394,2]
[363958223,1748946650471,-174.61919141,0.00019398,2]
[363958225,1748946650481,-181.2,0.00019452,2]
[363958227,1748946650491,-181.2,0.00019452,2]
[363958229,1748946650501,-3580.08648,0.00019452,2]
[363958231,1748946650511,-3580.08648,0.00019452,2]
[363958233,1748946650521,-440.0,0.00019452,2]
[363958235,1748946650531,-440.0,0.00019452,2]
[363958237,1748946650542,-440.0,0.00019452,2]
[363958239,1748946650553,-440.0,0.00019452,2]
[363958241,1748946650563,-440.0,0.00019452,2]
[363958243,1748946650572,-440.0,0.00019452,2]
[363958245,1748946650582,-440.0,0.00019452,2]
[363958247,1748946650592,-440.0,0.00019452,2]
[363958249,1748946650602,-440.0,0.00019452,2]
[363958251,1748946650612,-15951.04,0.00019452,2]
[363958253,1748946650621,-440.0,0.00019452,2]
[363958255,1748946650631,-440.0,0.00019452,2]
[363958257,1748946650642,-1331.65,0.00019452,2]
[363958259,1748946650652,-440.0,0.00019452,2]
[363958261,1748946650662,-487.26,0.00019452,2]
[363958263,1748946650671,-1206.48,0.00019452,2]
[363958265,1748946650680,-512.8,0.00019452,2]
[363958267,1748946650691,-4509.62,0.00019452,2]
[363958269,1748946650701,-440.0,0.00019452,2]
[363958271,1748946650711,-767.81,0.00019452,2]
[363958273,1748946650721,-1889.79,0.00019452,2]
[363958275,1748946650731,-2287.16,0.00019452,2]
[363958277,1748946650740,-1333.43,0.00019452,2]
[363958279,1748946650750,-2420.97,0.00019452,2]
[363958281,1748946650761,-1785.97,0.00019452,2]
[363958283,1748946650771,-490.58,0.00019452,2]
[363958285,1748946650781,-442.15,0.00019452,2]
[363958287,1748946650790,-440.0,0.00019452,2]
[363958289,1748946650800,-637.93,0.00019452,2]
[363958291,1748946650810,-655.59,0.00019452,2]
[363958293,1748946650819,-738.86,0.00019452,2]
[363958295,1748946650829,-440.0,0.00019452,2]
[363958297,1748946650838,-440.0,0.00019452,2]
[363958299,1748946650847,-440.0,0.00019452,2]
[363958301,1748946650856,-921.6,0.00019452,2]
[363958303,1748946650866,-648.26,0.00019452,2]
[363958305,1748946650876,-812.28,0.00019452,2]
[363958307,1748946650885,-1085.16,0.00019452,2]
[363958309,1748946650895,-440.0,0.00019452,2]
[363958311,1748946650904,-440.0,0.00019452,2]
[363958313,1748946650915,-440.0,0.00019452,2]
[363958315,1748946650924,-440.0,0.00019452,2]
[363958317,1748946650933,-1793.76,0.00019452,2]
[363958319,1748946650943,-969.47,0.00019452,2]
[363958321,1748946650953,-500.24804547,0.00019453,2]
[363958323,1748946650962,-513.98861648,0.00019453,2]
[363958325,1748946650972,-500.0,0.00019453,2]
[363958327,1748946650983,-181.08010149,0.00019453,2]
[363958329,1748946650992,-309.82771968,0.00019508,2]
[363958331,1748946651003,-500.84808081,0.00019577,2]
[363958333,1748946651012,-200.8465109,0.00019577,2]
[363958335,1748946651022,-500.0,0.00019577,2]
[363958337,1748946651031,-1694.5720177,0.0001959,2]
[363958339,1748946651042,-587.0,0.0001963,2]
[363958341,1748946651051,-240.0,0.0001963,2]
[363958343,1748946651060,-209.487149,0.00019726,2]
[363958345,1748946651070,-209.487149,0.00019726,2]
[363958347,1748946651079,-151.0,0.00019726,2]
[363958349,1748946651089,-716.24086,0.00019726,2]
[363958351,1748946651098,-716.24086,0.00019726,2]
[363958353,1748946651108,-440.0,0.00019726,2]
[363958355,1748946651117,-239.91,0.00019726,2]
[363958357,1748946651126,-440.0,0.00019726,2]
[363958358,1748946651135,-440.0,0.00019726,2]
[363958360,1748946651145,-440.0,0.00019726,2]
[363958363,1748946651156,-440.0,0.00019726,2]
[363958365,1748946651166,-440.0,0.00019726,2]
[363958367,1748946651175,-440.0,0.00019726,2]
[363958368,1748946651184,-440.0,0.00019726,2]
[363958370,1748946651194,-15951.04,0.00019726,2]
[363958372,1748946651203,-440.0,0.00019726,2]
[363958374,1748946651212,-440.0,0.00019726,2]
[363958376,1748946651223,-1331.65,0.00019726,2]
[363958378,1748946651232,-440.0,0.00019726,2]
[363958380,1748946651241,-487.26,0.00019726,2]
[363958382,1748946651250,-1206.48,0.00019726,2]
[363958384,1748946651259,-512.8,0.00019726,2]
[363958386,1748946651269,-4509.62,0.00019726,2]
[363958388,1748946651278,-440.0,0.00019726,2]
[363958390,1748946651287,-767.81,0.00019726,2]
[363958392,1748946651296,-1889.79,0.00019726,2]
[363958394,1748946651305,-2287.16,0.00019726,2]
[363958396,1748946651314,-1333.43,0.00019726,2]
[363958398,1748946651326,-2420.97,0.00019726,2]
[363958400,1748946651335,-1785.97,0.00019726,2]
[363958402,1748946651344,-490.58,0.00019726,2]
[363958404,1748946651354,-442.15,0.00019726,2]
[363958406,1748946651363,-440.0,0.00019726,2]
[363958408,1748946651372,-637.93,0.00019726,2]
[363958410,1748946651381,-655.59,0.00019726,2]
[363958412,1748946651390,-738.86,0.00019726,2]
[363958414,1748946651400,-440.0,0.00019726,2]
[363958416,1748946651409,-245.53,0.00019726,2]
[363958417,1748946651419,-440.0,0.00019726,2]
[363958420,1748946651429,-921.6,0.00019726,2]
[363958421,1748946651438,-648.26,0.00019726,2]
[363958423,1748946651449,-812.28,0.00019726,2]
[363958425,1748946651459,-1085.16,0.00019726,2]
[363958427,1748946651469,-440.0,0.00019726,2]
[363958429,1748946651479,-440.0,0.00019726,2]
[363958431,1748946651488,-440.0,0.00019726,2]
[363958433,1748946651498,-440.0,0.00019726,2]
[363958435,1748946651507,-1793.76,0.00019726,2]
[363958437,1748946651522,-969.47,0.00019726,2]
[363958439,1748946651531,-708.946,0.00019797,2]
[363958441,1748946651540,-149275.61858128,0.000198,2]
[363958443,1748946651550,-1694.5720177,0.00019831,2]
[363958445,1748946651561,-500.0,0.00019918,2]
[363958447,1748946651571,-500.0,0.00019918,2]
[363958449,1748946651580,-600.0,0.00019918,2]
[363958462,1748946651697,-500.0,0.00019918,2]
[363958464,1748946651707,-14857.81764852,0.0001999,2]
[363958466,1748946651716,-228.277107,0.0002,2]
[363958468,1748946651726,-228.277107,0.0002,2]
[363958470,1748946651735,-1500.0,0.0002,2]
[363958472,1748946651745,-440.0,0.0002,2]
[363958474,1748946651755,-430.0,0.0002,2]
[363958476,1748946651765,-440.0,0.0002,2]
[363958478,1748946651774,-440.0,0.0002,2]
[363958480,1748946651783,-440.0,0.0002,2]
[363958482,1748946651793,-440.0,0.0002,2]
[363958484,1748946651803,-440.0,0.0002,2]
[363958486,1748946651812,-440.0,0.0002,2]
[363958488,1748946651822,-200.0,0.0002,2]
[363958490,1748946651831,-15951.04,0.0002,2]
[363958492,1748946651841,-440.0,0.0002,2]
[363958494,1748946651851,-440.0,0.0002,2]
[363958496,1748946651861,-1331.65,0.0002,2]
[363958498,1748946651871,-440.0,0.0002,2]
[363958500,1748946651881,-487.26,0.0002,2]
[363958502,1748946651890,-1206.48,0.0002,2]
[363958504,1748946651900,-512.8,0.0002,2]
[363958506,1748946651909,-4509.62,0.0002,2]
[363958508,1748946651918,-557.81155039,0.0002,2]
[363958510,1748946651928,-767.81,0.0002,2]
[363958512,1748946651938,-1889.79,0.0002,2]
[363958514,1748946651947,-2287.16,0.0002,2]
[363958516,1748946651957,-1333.43,0.0002,2]
[363958518,1748946651966,-2420.97,0.0002,2]
[363958520,1748946651976,-1785.97,0.0002,2]
[363958522,1748946651985,-250.94138988,0.0002,2]
[363958524,1748946651995,-490.58,0.0002,2]
[363958526,1748946652004,-442.15,0.0002,2]
[363958528,1748946652013,-10963.90069888,0.0002,2]
[363958530,1748946652022,-440.0,0.0002,2]
[363958532,1748946652031,-4609.23722143,0.0002,2]
[363958534,1748946652041,-14566.63635667,0.0002,20]
[363958536,1748946652050,-637.93,0.0002,2]
[363958538,1748946652059,-655.59,0.0002,2]
[363958540,1748946652068,-738.86,0.0002,2]
[363958542,1748946652078,-440.0,0.0002,2]
[363958544,1748946652087,-440.0,0.0002,2]
[363958546,1748946652096,-921.6,0.0002,2]
[363958548,1748946652105,-648.26,0.0002,2]
[363958550,1748946652114,-812.28,0.0002,2]
[363958552,1748946652124,-1085.16,0.0002,2]
[363958554,1748946652134,-440.0,0.0002,2]
[363958556,1748946652143,-510.0,0.0002,2]
[363958558,1748946652153,-440.0,0.0002,2]
[363958560,1748946652162,-440.0,0.0002,2]
[363958562,1748946652171,-969.47,0.0002,2]
[363958564,1748946652182,-1793.76,0.0002,2]
[363958566,1748946652191,-1000.0,0.00020001,2]
[363958568,1748946652200,-1694.5720177,0.00020072,2]
[363958570,1748946652210,-500.0,0.00020125,2]
[363958572,1748946652220,-198.49233,0.00020187,2]
[363958574,1748946652229,-500.0,0.0002024,2]
[363958575,1748946652238,-209.487149,0.00020273,2]
[363958577,1748946652248,-209.487149,0.00020273,2]
[363958579,1748946652257,-151.0,0.00020273,2]
[363958581,1748946652266,-716.24086,0.00020273,2]
[363958583,1748946652276,-181.2,0.00020273,2]
[363958585,1748946652285,-716.24086,0.00020273,2]
[363958587,1748946652295,-181.2,0.00020273,2]
[363958589,1748946652304,-3580.08648,0.00020273,2]
[363958591,1748946652314,-3580.08648,0.00020273,2]
[363958593,1748946652324,-440.0,0.00020273,2]
[363958596,1748946652334,-440.0,0.00020273,2]
[363958597,1748946652343,-440.0,0.00020273,2]
[363958599,1748946652353,-440.0,0.00020273,2]
[363958601,1748946652363,-440.0,0.00020273,2]
[363958603,1748946652373,-440.0,0.00020273,2]
[363958605,1748946652382,-440.0,0.00020273,2]
[363958607,1748946652391,-15951.04,0.00020273,2]
[363958609,1748946652402,-440.0,0.00020273,2]
[363958611,1748946652411,-427.26392787,0.00020273,2]
[363958613,1748946652421,-1331.65,0.00020273,2]
[363958615,1748946652431,-440.0,0.00020273,2]
[363958617,1748946652441,-487.26,0.00020273,2]
[363958619,1748946652451,-1206.48,0.00020273,2]
[363958621,1748946652460,-512.8,0.00020273,2]
[363958623,1748946652469,-4509.62,0.00020273,2]
[363958625,1748946652479,-767.81,0.00020273,2]
[363958627,1748946652488,-1889.79,0.00020273,2]
[363958629,1748946652498,-2287.16,0.00020273,2]
[363958631,1748946652507,-1333.43,0.00020273,2]
[363958633,1748946652519,-2420.97,0.00020273,2]
[363958635,1748946652529,-160.0,0.00020273,2]
[363958637,1748946652538,-1785.97,0.00020273,2]
[363958639,1748946652547,-490.58,0.00020273,2]
[363958640,1748946652558,-442.15,0.00020273,2]
[363958642,1748946652568,-440.0,0.00020273,2]
[363958644,1748946652578,-637.93,0.00020273,2]
[363958646,1748946652587,-655.59,0.00020273,2]
[363958648,1748946652599,-738.86,0.00020273,2]
[363958650,1748946652608,-440.0,0.00020273,2]
[363958652,1748946652618,-440.0,0.00020273,2]
[363958654,1748946652628,-921.6,0.00020273,2]
[363958656,1748946652638,-648.26,0.00020273,2]
[363958658,1748946652647,-812.28,0.00020273,2]
[363958660,1748946652657,-1085.16,0.00020273,2]
[363958662,1748946652667,-440.0,0.00020273,2]
[363958664,1748946652677,-440.0,0.00020273,2]
[363958666,1748946652688,-440.0,0.00020273,2]
[363958668,1748946652697,-969.47,0.00020273,2]
[363958670,1748946652706,-1793.76,0.00020273,2]
[363958672,1748946652716,-1694.5720177,0.00020314,3]
[363958674,1748946652725,-207.4,0.00020365,2]
[363958676,1748946652735,-276.99548171,0.0002045,30]
[363958678,1748946652744,-500.0,0.00020466,2]
[363958680,1748946652754,-1200.0,0.00020466,2]
[363958682,1748946652764,-167.40932512,0.00020531,2]
[363958684,1748946652774,-410.0,0.00020547,2]
[363958686,1748946652783,-440.0,0.00020547,2]
[363958688,1748946652795,-688.05,0.00020547,2]
[363958690,1748946652805,-440.0,0.00020547,2]
[363958692,1748946652814,-440.0,0.00020547,2]
[363958694,1748946652823,-440.0,0.00020547,2]
[363958696,1748946652834,-440.0,0.00020547,2]
[363958697,1748946652843,-440.0,0.00020547,2]
[363958698,1748946652852,-15951.04,0.00020547,2]
[363958699,1748946652861,-440.0,0.00020547,2]
[363958700,1748946652870,-1331.65,0.00020547,2]
[363958701,1748946652879,-440.0,0.00020547,2]
[363958702,1748946652888,-487.26,0.00020547,2]
[363958703,1748946652897,-1206.48,0.00020547,2]
[363958704,1748946652906,-512.8,0.00020547,2]
[363958705,1748946652915,-4509.62,0.00020547,2]
[363958706,1748946652924,-767.81,0.00020547,2]
[363958707,1748946652934,-1889.79,0.00020547,2]
[363958708,1748946652943,-2287.16,0.00020547,2]
[363958709,1748946652953,-1333.43,0.00020547,2]
[363958710,1748946652962,-2420.97,0.00020547,2]
[363958711,1748946652972,-1785.97,0.00020547,2]
[363958712,1748946652981,-442.15,0.00020547,2]
[363958713,1748946652990,-490.58,0.00020547,2]
[363958714,1748946652999,-347.5768022,0.00020547,2]
[363958715,1748946653008,-637.93,0.00020547,2]
[363958716,1748946653017,-655.59,0.00020547,2]
[363958717,1748946653026,-738.86,0.00020547,2]
[363958718,1748946653036,-440.0,0.00020547,2]
[363958719,1748946653046,-440.0,0.00020547,2]
[363958720,1748946653055,-921.6,0.00020547,2]
[363958721,1748946653064,-648.26,0.00020547,2]
[363958723,1748946653074,-812.28,0.00020547,2]
[363958725,1748946653083,-1085.16,0.00020547,2]
[363958727,1748946653093,-440.0,0.00020547,2]